fUST/lending_fUST_20260111
["ID","MTS","AMOUNT","RATE_DAILY","PERIOD"]
[401282117,1768100510928,-500.0,9.516e-05,2]
[401282118,1768100510953,-500.0,9.516e-05,2]
[401282119,1768100510977,-563.67619751,9.516e-05,2]
[401282120,1768100511001,-758.46038094,9.516e-05,2]
[401282121,1768100511025,-500.0,9.516e-05,2]
[401282122,1768100511049,-500.0,9.516e-05,2]
[401282123,1768100511075,-563.67619751,9.516e-05,2]
[401282124,1768100511100,-758.46038094,9.516e-05,2]
[401282125,1768100511124,-500.0,9.516e-05,2]
[401282126,1768100511148,-500.0,9.516e-05,2]
[401282127,1768100511172,-563.67619751,9.516e-05,2]
[401282128,1768100511198,-758.46038094,9.516e-05,2]
[401282129,1768100511219,-500.0,9.516e-05,2]
[401282130,1768100511244,-500.0,9.516e-05,2]
[401282131,1768100511278,-758.46038094,9.516e-05,2]
[401282132,1768100511313,-500.0,9.516e-05,2]
[401282133,1768100511340,-500.0,9.516e-05,2]
[401282134,1768100511373,-758.46038094,9.516e-05,2]
[401282135,1768100511406,-462.78668628,9.516e-05,2]
[401282136,1768100511436,-500.0,9.516e-05,2]
[401282137,1768100511471,-758.46038094,9.516e-05,2]
[401282138,1768100511502,-500.0,9.516e-05,2]
[401282139,1768100511534,-500.0,9.516e-05,2]
[401282140,1768100511565,-500.0,9.516e-05,2]
[401282141,1768100511598,-500.0,9.516e-05,2]
[401282142,1768100511627,-563.67619751,9.516e-05,2]
[401282143,1768100511657,-758.46038094,9.516e-05,2]
[401282144,1768100511687,-500.0,9.516e-05,2]
[401282145,1768100511719,-500.0,9.516e-05,2]
[401282146,1768100511751,-563.67619751,9.516e-05,2]
[401282147,1768100511785,-500.0,9.516e-05,2]
[401282148,1768100511815,-563.67619751,9.516e-05,2]
[401282149,1768100511843,-500.0,9.516e-05,2]
[401282150,1768100511874,-758.46038094,9.516e-05,2]
[401282151,1768100511907,-500.0,9.516e-05,2]
[401282152,1768100511936,-563.67619751,9.516e-05,2]
[401282153,1768100511967,-500.0,9.516e-05,2]
[401282154,1768100511999,-758.46038094,9.516e-05,2]
[401282155,1768100512027,-500.0,9.516e-05,2]
[401282156,1768100512057,-563.67619751,9.516e-05,2]
[401282157,1768100512086,-500.0,9.516e-05,2]
[401282158,1768100512115,-563.67619751,9.516e-05,2]
[401282159,1768100512144,-500.0,9.516e-05,2]
[401282160,1768100512178,-758.46038094,9.516e-05,2]
[401282161,1768100512206,-500.0,9.516e-05,2]
[401282162,1768100512234,-563.67619751,9.516e-05,2]
[401282163,1768100512265,-758.46038094,9.516e-05,2]
[401282164,1768100512293,-563.67619751,9.516e-05,2]
[401282165,1768100512322,-500.0,9.516e-05,2]
[401282166,1768100512351,-500.0,9.516e-05,2]
[401282167,1768100512381,-758.46038094,9.516e-05,2]
[401282168,1768100512411,-563.67619751,9.516e-05,2]
[401282169,1768100512441,-500.0,9.516e-05,2]
[401282170,1768100512473,-758.46038094,9.516e-05,2]
[401282171,1768100512503,-563.67619751,9.516e-05,2]
[401282172,1768100512533,-500.0,9.516e-05,2]
[401282173,1768100512561,-500.0,9.516e-05,2]
[401282174,1768100512590,-758.46038094,9.516e-05,2]
[401282175,1768100512755,-563.67619751,9.516e-05,2]
[401282176,1768100512781,-500.0,9.516e-05,2]
[401282177,1768100512808,-500.0,9.516e-05,2]
[401282178,1768100512834,-758.46038094,9.516e-05,2]
[401282179,1768100512861,-563.67619751,9.516e-05,2]
[401282180,1768100512887,-500.0,9.516e-05,2]
[401282181,1768100512912,-500.0,9.516e-05,2]
[401282182,1768100512939,-563.67619751,9.516e-05,2]
[401282183,1768100512964,-500.0,9.516e-05,2]
[401282184,1768100512991,-563.67619751,9.516e-05,2]
[401282185,1768100513025,-758.46038094,9.516e-05,2]
[401282186,1768100513051,-500.0,9.516e-05,2]
[401282187,1768100513077,-563.67619751,9.516e-05,2]
[401282188,1768100513102,-500.0,9.516e-05,2]
[401282189,1768100513129,-758.46038094,9.516e-05,2]
[401282190,1768100513155,-563.67619751,9.516e-05,2]
[401282191,1768100513182,-500.0,9.516e-05,2]
[401282192,1768100513207,-500.0,9.516e-05,2]
[401282193,1768100513235,-563.67619751,9.516e-05,2]
[401282194,1768100513259,-500.0,9.516e-05,2]
[401282195,1768100513289,-758.46038094,9.516e-05,2]
[401282196,1768100513315,-563.67619751,9.516e-05,2]
[401282197,1768100513341,-500.0,9.516e-05,2]
[401282198,1768100513367,-500.0,9.516e-05,2]
[401282199,1768100513393,-563.67619751,9.516e-05,2]
[401282200,1768100513419,-213.63489126,9.516e-05,2]
[401282201,1768100542664,552.78,7.05e-05,2]
[401282202,1768100543603,1105.57,7.691e-05,2]
[401282203,1768100544065,1658.35,8.332e-05,2]
[401282204,1768100544544,2211.13,8.973e-05,2]
[401282205,1768100621484,496.38,7.052e-05,2]
[401282206,1768100621890,992.75,7.693e-05,2]
[401282207,1768100622319,1489.13,8.334e-05,2]
[401282208,1768100622747,1985.5,8.975e-05,2]
[401282209,1768100629140,-500.0,9.459e-05,2]
[401282210,1768100700553,450.55,7.056e-05,2]
[401282211,1768100700939,901.1,7.697e-05,2]
[401282212,1768100701543,1351.65,8.338e-05,2]
[401282213,1768100701993,1802.2,8.98e-05,2]
[401282214,1768100703342,4238.5106177,8.533e-05,2]
[401282215,1768100710498,1255.9993823,8.525e-05,2]
[401282216,1768100710522,717.769262,8.525e-05,2]
[401282217,1768100779844,393.21,6.998e-05,2]
[401282218,1768100780391,786.41,7.634e-05,2]
[401282219,1768100780667,1179.62,8.27e-05,2]
[401282220,1768100781089,1572.83,8.906e-05,2]
[401282221,1768100859795,343.16,7.061e-05,2]
[401282222,1768100860242,686.32,7.703e-05,2]
[401282223,1768100860644,1029.49,8.345e-05,2]
[401282224,1768100861032,1372.65,8.987e-05,2]
[401282225,1768100880191,218.72,7.992e-05,2]
[401282226,1768100938022,299.49,7.013e-05,2]
[401282227,1768100938432,598.97,7.651e-05,2]
[401282228,1768100938854,801.370738,8.288e-05,2]
[401282229,1768100938877,97.089262,8.288e-05,2]
[401282230,1768100939267,1197.95,8.926e-05,2]
[401282231,1768100953607,-500.0,9.459e-05,2]
[401282232,1768100953632,-300.0,9.511e-05,2]
[401282233,1768100953654,-300.0,9.511e-05,2]
[401282234,1768100953677,-500.0,9.512e-05,2]
[401282235,1768100953700,-500.0,9.512e-05,2]
[401282236,1768100953722,-500.0,9.512e-05,2]
[401282237,1768100953744,-211.32838086,9.512e-05,2]
[401282238,1768100953767,-500.0,9.512e-05,2]
[401282239,1768100953789,-500.0,9.512e-05,2]
[401282240,1768100953811,-500.0,9.512e-05,2]
[401282241,1768100953833,-500.0,9.512e-05,2]
[401282242,1768100953857,-500.0,9.512e-05,2]
[401282243,1768100953879,-500.0,9.512e-05,2]
[401282244,1768100953902,-500.0,9.512e-05,2]
[401282245,1768100953925,-500.0,9.512e-05,2]
[401282246,1768100953946,-475.07646599,9.512e-05,2]
[401282247,1768100953971,-500.0,9.512e-05,2]
[401282248,1768100953994,-500.0,9.512e-05,2]
[401282249,1768100954016,-500.0,9.512e-05,2]
[401282250,1768100954042,-500.0,9.512e-05,2]
[401282251,1768100954065,-500.0,9.512e-05,2]
[401282252,1768100954088,-500.0,9.512e-05,2]
[401282253,1768100954112,-500.0,9.512e-05,2]
[401282254,1768100954135,-500.0,9.512e-05,2]
[401282255,1768100954159,-500.0,9.512e-05,2]
[401282256,1768100954182,-500.0,9.512e-05,2]
[401282257,1768100954205,-500.0,9.512e-05,2]
[401282258,1768100954351,-500.0,9.512e-05,2]
[401282259,1768100954376,-500.0,9.512e-05,2]
[401282260,1768100954401,-500.0,9.512e-05,2]
[401282261,1768100954424,-500.0,9.512e-05,2]
[401282262,1768100954446,-500.0,9.512e-05,2]
[401282263,1768100954470,-500.0,9.512e-05,2]
[401282264,1768100954493,-500.0,9.512e-05,2]
[401282265,1768100954516,-500.0,9.512e-05,2]
[401282266,1768100954538,-500.0,9.512e-05,2]
[401282267,1768100954562,-500.0,9.512e-05,2]
[401282268,1768100954584,-500.0,9.512e-05,2]
[401282269,1768100954609,-500.0,9.512e-05,2]
[401282270,1768100954631,-500.0,9.512e-05,2]
[401282271,1768100954653,-500.0,9.512e-05,2]
[401282272,1768100954676,-500.0,9.512e-05,2]
[401282273,1768100954700,-500.0,9.512e-05,2]
[401282274,1768100954723,-500.0,9.512e-05,2]
[401282275,1768100954744,-500.0,9.512e-05,2]
[401282276,1768100954766,-500.0,9.512e-05,2]
[401282277,1768100954789,-500.0,9.512e-05,2]
[401282278,1768100954811,-500.0,9.512e-05,2]
[401282279,1768100954833,-500.0,9.512e-05,2]
[401282280,1768100954856,-374.16318803,9.512e-05,2]
[401282281,1768100954878,-500.0,9.512e-05,2]
[401282282,1768100954900,-500.0,9.512e-05,2]
[401282283,1768100954923,-500.0,9.512e-05,2]
[401282284,1768100954945,-500.0,9.512e-05,2]
[401282285,1768100954967,-500.0,9.512e-05,2]
[401282286,1768100954990,-500.0,9.512e-05,2]
[401282287,1768100955014,-500.0,9.512e-05,2]
[401282288,1768100955036,-201.9923286,9.512e-05,2]
[401282289,1768100955059,-500.0,9.512e-05,2]
[401282290,1768100955081,-500.0,9.512e-05,2]
[401282291,1768100955107,-500.0,9.512e-05,2]
[401282292,1768100955129,-500.0,9.512e-05,2]
[401282293,1768100955152,-500.0,9.512e-05,2]
[401282294,1768100955175,-500.0,9.512e-05,2]
[401282295,1768100955198,-500.0,9.512e-05,2]
[401282296,1768100955221,-500.0,9.512e-05,2]
[401282297,1768100955244,-500.0,9.512e-05,2]
[401282298,1768100955268,-500.0,9.512e-05,2]
[401282299,1768100955292,-500.0,9.512e-05,2]
[401282300,1768100955315,-498.1558415,9.512e-05,2]
[401282301,1768100955337,-500.0,9.512e-05,2]
[401282302,1768100955360,-500.0,9.512e-05,2]
[401282303,1768100955383,-500.0,9.512e-05,2]
[401282304,1768100955406,-500.0,9.512e-05,2]
[401282305,1768100955430,-500.0,9.512e-05,2]
[401282306,1768100955452,-500.0,9.512e-05,2]
[401282307,1768100955476,-500.0,9.512e-05,2]
[401282308,1768100955499,-500.0,9.512e-05,2]
[401282309,1768100955522,-500.0,9.512e-05,2]
[401282310,1768100955546,-500.0,9.512e-05,2]
[401282311,1768100955568,-500.0,9.512e-05,2]
[401282312,1768100955590,-500.0,9.512e-05,2]
[401282313,1768100955615,-500.0,9.512e-05,2]
[401282314,1768100955638,-500.0,9.512e-05,2]
[401282315,1768100955661,-500.0,9.512e-05,2]
[401282316,1768100955683,-500.0,9.512e-05,2]
[401282317,1768100955706,-500.0,9.512e-05,2]
[401282318,1768100955728,-500.0,9.512e-05,2]
[401282319,1768100955750,-500.0,9.512e-05,2]
[401282320,1768100955774,-500.0,9.512e-05,2]
[401282321,1768100955796,-500.0,9.512e-05,2]
[401282322,1768100955820,-500.0,9.512e-05,2]
[401282323,1768100955841,-500.0,9.512e-05,2]
[401282324,1768100955865,-500.0,9.512e-05,2]
[401282325,1768100955888,-500.0,9.512e-05,2]
[401282326,1768100955909,-500.0,9.512e-05,2]
[401282327,1768100955933,-500.0,9.512e-05,2]
[401282328,1768100955957,-500.0,9.512e-05,2]
[401282329,1768100955982,-500.0,9.512e-05,2]
[401282330,1768100956006,-500.0,9.512e-05,2]
[401282331,1768100956031,-475.12685774,9.512e-05,2]
[401282332,1768100956054,-500.0,9.512e-05,2]
[401282333,1768100956077,-500.0,9.512e-05,2]
[401282334,1768100956101,-500.0,9.512e-05,2]
[401282335,1768100956124,-500.0,9.512e-05,2]
[401282336,1768100956148,-500.0,9.512e-05,2]
[401282337,1768100956173,-500.0,9.512e-05,2]
[401282338,1768100956197,-500.0,9.512e-05,2]
[401282339,1768100956220,-500.0,9.512e-05,2]
[401282340,1768100956241,-500.0,9.512e-05,2]
[401282341,1768100956267,-350.0,9.512e-05,2]
[401282342,1768100956289,-500.0,9.512e-05,2]
[401282343,1768100956313,-500.0,9.512e-05,2]
[401282344,1768100956335,-214.54256416,9.512e-05,2]
[401282345,1768100956357,-50000.0,9.513e-05,2]
[401282346,1768100956380,-151.0,9.513e-05,2]
[401282347,1768100956402,-151.0,9.513e-05,2]
[401282348,1768100956423,-151.0,9.513e-05,2]
[401282349,1768100956447,-250.0,9.513e-05,2]
[401282350,1768100956470,-151.0,9.513e-05,2]
[401282351,1768100956491,-461.67526834,9.513e-05,2]
[401282352,1768100956512,-250.0,9.513e-05,2]
[401282353,1768100956533,-151.0,9.513e-05,2]
[401282354,1768100956555,-250.0,9.513e-05,2]
[401282355,1768100956575,-151.0,9.513e-05,2]
[401282356,1768100956708,-250.0,9.513e-05,2]
[401282357,1768100956731,-250.0,9.513e-05,2]
[401282358,1768100956754,-250.0,9.513e-05,2]
[401282359,1768100956775,-151.0,9.513e-05,2]
[401282360,1768100956798,-250.0,9.513e-05,2]
[401282361,1768100956820,-250.0,9.513e-05,2]
[401282362,1768100956842,-250.0,9.513e-05,2]
[401282363,1768100956864,-151.0,9.513e-05,2]
[401282364,1768100956891,-250.0,9.513e-05,2]
[401282365,1768100956914,-250.0,9.513e-05,2]
[401282366,1768100956938,-272.04976674,9.513e-05,2]
[401282367,1768100956960,-250.0,9.513e-05,2]
[401282368,1768100956982,-151.0,9.513e-05,2]
[401282369,1768100957003,-250.0,9.513e-05,2]
[401282370,1768100957024,-250.0,9.513e-05,2]
[401282371,1768100957045,-250.0,9.513e-05,2]
[401282372,1768100957066,-151.0,9.513e-05,2]
[401282373,1768100957087,-500.0,9.513e-05,2]
[401282374,1768100957110,-250.0,9.513e-05,2]
[401282375,1768100957131,-250.0,9.513e-05,2]
[401282376,1768100957153,-151.0,9.513e-05,2]
[401282377,1768100957176,-250.0,9.513e-05,2]
[401282378,1768100957198,-616.90967742,9.513e-05,2]
[401282379,1768100957220,-250.0,9.513e-05,2]
[401282380,1768100957242,-250.0,9.513e-05,2]
[401282381,1768100957264,-151.0,9.513e-05,2]
[401282382,1768100957285,-250.0,9.513e-05,2]
[401282383,1768100957307,-317.5613257,9.513e-05,2]
[401282384,1768100957328,-250.0,9.513e-05,2]
[401282385,1768100957350,-151.0,9.513e-05,2]
[401282386,1768100957371,-250.0,9.513e-05,2]
[401282387,1768100957393,-151.0,9.513e-05,2]
[401282388,1768100957416,-250.0,9.513e-05,2]
[401282389,1768100957438,-250.0,9.513e-05,2]
[401282390,1768100957460,-250.0,9.513e-05,2]
[401282391,1768100957482,-151.0,9.513e-05,2]
[401282392,1768100957505,-250.0,9.513e-05,2]
[401282393,1768100957526,-250.0,9.513e-05,2]
[401282394,1768100957549,-151.0,9.513e-05,2]
[401282395,1768100957571,-255.05897555,9.513e-05,2]
[401282396,1768100957593,-250.0,9.513e-05,2]
[401282397,1768100957617,-151.0,9.513e-05,2]
[401282398,1768100957638,-151.0,9.513e-05,2]
[401282399,1768100957661,-250.0,9.513e-05,2]
[401282400,1768100957684,-151.0,9.513e-05,2]
[401282401,1768100957705,-151.0,9.513e-05,2]
[401282402,1768100957727,-152.5509115,9.513e-05,2]
[401282403,1768100957749,-250.0,9.513e-05,2]
[401282404,1768100957770,-151.0,9.513e-05,2]
[401282405,1768100957791,-151.0,9.513e-05,2]
[401282406,1768100957814,-250.0,9.513e-05,2]
[401282407,1768100957842,-151.0,9.513e-05,2]
[401282408,1768100957873,-151.0,9.513e-05,2]
[401282409,1768100957900,-151.0,9.513e-05,2]
[401282410,1768100957930,-151.0,9.513e-05,2]
[401282411,1768100957958,-2230.315306,9.513e-05,2]
[401282412,1768100957986,-250.0,9.513e-05,2]
[401282413,1768100958013,-151.0,9.513e-05,2]
[401282414,1768100958042,-256.09172278,9.513e-05,2]
[401282415,1768100958068,-151.0,9.513e-05,2]
[401282416,1768100958095,-151.0,9.513e-05,2]
[401282417,1768100958122,-151.0,9.513e-05,2]
[401282418,1768100958150,-151.0,9.513e-05,2]
[401282419,1768100958178,-1500.0,9.513e-05,2]
[401282420,1768100958201,-151.0,9.513e-05,2]
[401282421,1768100958227,-1500.0,9.513e-05,2]
[401282422,1768100958252,-151.0,9.513e-05,2]
[401282423,1768100958279,-1500.0,9.513e-05,2]
[401282424,1768100958307,-250.0,9.513e-05,2]
[401282425,1768100958336,-1500.0,9.513e-05,2]
[401282426,1768100958364,-151.0,9.513e-05,2]
[401282427,1768100958391,-250.0,9.513e-05,2]
[401282428,1768100958415,-1320.34637814,9.513e-05,2]
[401282429,1768100958438,-151.0,9.513e-05,2]
[401282430,1768100958466,-250.0,9.513e-05,2]
[401282431,1768100958492,-195.27340879,9.513e-05,2]
[401282432,1768100958515,-250.0,9.513e-05,2]
[401282433,1768100958541,-250.0,9.513e-05,2]
[401282434,1768100958565,-250.0,9.513e-05,2]
[401282435,1768100958588,-310.11224303,9.513e-05,2]
[401282436,1768100958614,-300.0,9.515e-05,2]
[401282437,1768100958636,-300.0,9.515e-05,2]
[401282438,1768100958661,-1200.0,9.515e-05,2]
[401282439,1768100958689,-1948.7470571,9.515e-05,2]
[401282440,1768100958714,-550.12348775,9.515e-05,2]
[401282441,1768100958739,-1173.961928,9.516e-05,2]
[401282442,1768100958771,-151.71521085,9.516e-05,2]
[401282443,1768100958811,-152.735431,9.516e-05,2]
[401282444,1768100958848,-152.735431,9.516e-05,2]
[401282445,1768100958883,-152.735431,9.516e-05,2]
[401282446,1768100958907,-152.735431,9.516e-05,2]
[401282447,1768100958933,-152.735431,9.516e-05,2]
[401282448,1768100958958,-152.735431,9.516e-05,2]
[401282449,1768100958983,-152.735431,9.516e-05,2]
[401282450,1768100959007,-152.735431,9.516e-05,2]
[401282451,1768100959031,-152.735431,9.516e-05,2]
[401282452,1768100959054,-152.735431,9.516e-05,2]
[401282453,1768100959078,-152.735431,9.516e-05,2]
[401282454,1768100959102,-152.735431,9.516e-05,2]
[401282455,1768100959125,-30000.0,9.516e-05,2]
[401282456,1768100959148,-152.735431,9.518e-05,2]
[401282457,1768100959319,-152.735431,9.518e-05,2]
[401282458,1768100959346,-152.735431,9.518e-05,2]
[401282459,1768100959369,-152.735431,9.518e-05,2]
[401282460,1768100959395,-28608.35480943,9.518e-05,2]
[401282461,1768100960050,147.12473722,0.00023619,94]
[401282462,1768100960072,136.894871,0.00023619,94]
[401282463,1768100960136,48.47376583,0.00023751,102]
[401282464,1768100960160,185.36863683,0.00023751,102]
[401282465,1768100960184,50.17720556,0.00023751,102]
[401282467,1768100982344,-237.18653309,9.459e-05,2]
[401282468,1768100982374,-153.14391162,9.459e-05,2]
[401282469,1768100982407,-166.491439,9.459e-05,2]
[401282470,1768101003995,150.18,5e-05,2]
[401282471,1768101004547,150.18,6.4e-05,2]
[401282472,1768101005090,150.18,7.8e-05,2]
[401282473,1768101015327,284.47,6.837e-05,2]
[401282474,1768101015716,568.94,7.459e-05,2]
[401282475,1768101016114,853.4,8.081e-05,2]
[401282476,1768101016559,1137.87,8.702e-05,2]
[401282477,1768101020049,-150.18,9.2e-05,2]
[401282478,1768101020705,-300.0,9.324e-05,2]
[401282479,1768101023262,-568.35971716,9.324e-05,2]
[401282480,1768101025970,-258.54246207,9.324e-05,2]
[401282481,1768101028223,-225.06102416,9.324e-05,2]
[401282490,1768101032058,-70.37679661,9.324e-05,2]
[401282491,1768101032068,-300.0,9.511e-05,2]
[401282492,1768101032079,-300.0,9.511e-05,2]
[401282493,1768101032089,-133.64231511,9.511e-05,2]
[401282495,1768101034090,-166.35768489,9.511e-05,2]
[401282496,1768101034100,-1200.0,9.511e-05,2]
[401282497,1768101034111,-392.0,9.512e-05,2]
[401282498,1768101034121,-302.0,9.512e-05,2]
[401282499,1768101034131,-297.0,9.512e-05,2]
[401282500,1768101034141,-2267.62534311,9.512e-05,2]
[401282501,1768101034158,-8602.09800152,9.512e-05,2]
[401282504,1768101038346,-8853.41970997,9.512e-05,2]
[401282505,1768101038357,-270.7818389,9.512e-05,2]
[401282506,1768101038367,-553.0,9.512e-05,2]
[401282507,1768101038377,-461.67526834,9.513e-05,2]
[401282508,1768101038387,-151.0,9.513e-05,2]
[401282509,1768101038397,-151.0,9.513e-05,2]
[401282510,1768101038406,-151.0,9.513e-05,2]
[401282511,1768101038417,-151.0,9.513e-05,2]
[401282512,1768101038426,-2230.315306,9.513e-05,2]
[401282513,1768101038436,-151.0,9.513e-05,2]
[401282514,1768101038446,-189.04827547,9.513e-05,2]
[401282515,1768101038456,-151.0,9.513e-05,2]
[401282516,1768101038465,-30000.0,9.515e-05,2]
[401282517,1768101038475,-971391.64519057,9.518e-05,2]
[401282518,1768101038485,-1728.28869786,9.542e-05,2]
[401282519,1768101038495,-203.2787656,9.548e-05,2]
[401282520,1768101038504,-500.0,9.596e-05,2]
[401282521,1768101038515,-166.27091077,9.596e-05,2]
[401282522,1768101038524,-159.58454421,9.596e-05,2]
[401282523,1768101038534,-151.0,9.618e-05,2]
[401282524,1768101038543,-151.0,9.618e-05,2]
[401282525,1768101038553,-151.0,9.618e-05,2]
[401282526,1768101038563,-151.0,9.618e-05,2]
[401282527,1768101038572,-151.0,9.618e-05,2]
[401282528,1768101038581,-151.0,9.618e-05,2]
[401282529,1768101038590,-162.05164,9.618e-05,2]
[401282530,1768101038600,-205.243,9.619e-05,2]
[401282531,1768101038610,-500.0,9.733e-05,2]
[401282532,1768101038620,-300.0,9.81e-05,2]
[401282533,1768101038629,-300.0,9.81e-05,2]
[401282534,1768101038639,-300.0,9.81e-05,2]
[401282535,1768101038650,-300.0,9.81e-05,2]
[401282536,1768101038659,-300.0,9.81e-05,2]
[401282538,1768101038669,-300.0,9.81e-05,2]
[401282539,1768101038678,-300.0,9.81e-05,2]
[401282540,1768101038687,-300.0,9.81e-05,2]
[401282541,1768101038698,-300.0,9.81e-05,2]
[401282543,1768101038707,-300.0,9.81e-05,2]
[401282544,1768101038716,-300.0,9.81e-05,2]
[401282545,1768101038726,-300.0,9.81e-05,2]
[401282546,1768101038736,-300.0,9.81e-05,2]
[401282547,1768101038745,-300.0,9.81e-05,2]
[401282548,1768101038756,-300.0,9.81e-05,2]
[401282549,1768101038766,-600.0,9.81e-05,2]
[401282550,1768101038775,-500.0,9.87e-05,2]
[401282551,1768101038785,-150.5,9.9e-05,2]
[401282552,1768101038794,-1706.81,9.945e-05,2]
[401282553,1768101038803,-2397.48921323,9.963e-05,2]
[401282554,1768101038813,-510.35,9.964e-05,2]
[401282555,1768101038823,-350.9652004,0.0001,2]
[401282556,1768101038832,-152.17,0.0001,2]
[401282557,1768101038842,-500.0,0.00010007,2]
[401282558,1768101038852,-478.75725327,0.00010061,2]
[401282559,1768101038862,-2312.83697232,0.00010061,2]
[401282560,1768101038872,-151.0,0.00010061,2]
[401282561,1768101038881,-152.735431,0.00010061,2]
[401282562,1768101038892,-152.735431,0.00010061,2]
[401282563,1768101038907,-152.735431,0.00010061,2]
[401282564,1768101038919,-152.735425,0.00010061,2]
[401282565,1768101038928,-31110.0,0.00010063,2]
[401282566,1768101038938,-500.0,0.00010144,2]
[401282567,1768101038948,-2397.48921323,0.00010148,2]
[401282568,1768101038957,-551.58741253,0.00010194,2]
[401282569,1768101038966,-500.0,0.00010281,2]
[401282570,1768101038976,-4711.2334938,0.00010284,2]
[401282571,1768101038986,-500.0,0.00010418,2]
[401282572,1768101038996,-203.2787656,0.00010433,2]
[401282573,1768101039006,-250.0,0.00010445,2]
[401282574,1768101039017,-420.0,0.00010462,2]
[401282575,1768101039027,-1680.0,0.00010462,2]
[401282576,1768101039037,-270.7818389,0.00010483,2]
[401282577,1768101039047,-1173.961928,0.00010487,2]
[401282578,1768101039057,-2397.48921323,0.00010545,2]
[401282579,1768101039067,-500.0,0.00010555,2]
[401282580,1768101039077,-754.1471124,0.00010557,2]
[401282581,1768101039087,-1991.28,0.00010567,2]
[401282582,1768101039098,-152.97,0.000106,2]
[401282583,1768101039108,-150.18,0.000106,2]
[401282584,1768101039119,-496.47127164,0.00010609,2]
[401282585,1768101039129,-2398.4119403,0.00010609,2]
[401282586,1768101039140,-151.84723318,0.00010609,2]
[401282587,1768101039150,-32261.07,0.00010611,2]
[401282588,1768101039160,-1051.2182839,0.00010647,2]
[401282589,1768101039170,-500.0,0.00010692,2]
[401282590,1768101039179,-1202.73744254,0.00010713,2]
[401282591,1768101039194,-2397.48921323,0.00010753,2]
[401282592,1768101039204,-4400.8280684,0.00010774,2]
[401282593,1768101039214,-720.0,0.00010791,2]
[401282594,1768101039224,-168.2729659,0.00010824,2]
[401282595,1768101039234,-500.0,0.00010829,2]
[401282596,1768101039244,-152.17,0.000109,2]
[401282597,1768101039254,-999.0,0.00010959,2]
[401282598,1768101039263,-1500.53617,0.00010959,2]
[401282599,1768101039272,-1500.0,0.00010959,2]
[401282600,1768101039282,-1501.88474,0.00010959,2]
[401282601,1768101039292,-500.0,0.00010966,2]
[401282602,1768101039302,-500.0,0.00011,2]
[401282603,1768101039311,-981.9574716,0.00011055,2]
[401282604,1768101039321,-500.0,0.00011103,2]
[401282605,1768101039332,-514.84070869,0.00011157,2]
[401282606,1768101039343,-2487.15318209,0.00011157,2]
[401282607,1768101039354,-33454.72959,0.00011159,2]
[401282608,1768101039364,-2275.74,0.00011188,2]
[401282609,1768101039375,-2397.48921323,0.00011196,2]
[401282610,1768101039386,-500.0,0.0001124,2]
[401282611,1768101039396,-215.27570122,0.00011274,2]
[401282612,1768101039405,-233.23085362,0.00011274,2]
[401282613,1768101039415,-181.86041485,0.00011274,2]
[401282614,1768101039425,-203.2787656,0.00011317,2]
[401282615,1768101039434,-166.88,0.00011329,2]
[401282616,1768101039443,-1060.19533706,0.00011345,2]
[401282617,1768101039452,-279.09318678,0.00011346,2]
[401282618,1768101039462,-215.27570122,0.00011346,2]
[401282619,1768101039472,-1396.08845609,0.00011347,2]
[401282620,1768101039482,-500.0,0.00011377,2]
[401282621,1768101039492,-2397.48921323,0.00011403,2]
[401282622,1768101039502,-270.7818389,0.00011454,2]
[401282623,1768101039511,-1173.961928,0.00011459,2]
[401282624,1768101039520,-587.0,0.00011508,2]
[401282625,1768101039530,-2206.0,0.00011508,2]
[401282626,1768101039539,-253.16022571,0.00011512,2]
[401282627,1768101039548,-500.0,0.00011514,2]
[401282628,1768101039558,-545.81688893,0.00011651,2]
[401282629,1768101039568,-152.17,0.000117,2]
[401282630,1768101039578,-533.88981491,0.00011705,2]